[Event "Grand Prix Romania 1st Stage 2024"]
[Site "Bucuresti"]
[Date "2024.03.24"]
[Round "9.7"]
[White "Chigaev, Maksim"]
[Black "Tilicheev, Viacheslav"]
[Result "1-0"]
[ECO "A14"]
[WhiteElo "2617"]
[BlackElo "2485"]
[Annotator "TA"]
[PlyCount "85"]
[EventDate "2024.03.20"]
[EventType "swiss"]
[EventCountry "ROU"]
[SourceTitle "playchess.com"]
[Source "ChessBase"]
[SourceQuality "1"]
[TimeControl "900+5"]

{[%evp 13,85,24,30,20,24,10,40,49,34,58,57,47,40,47,59,51,72,77,172,172,170,178,173,177,191,193,192,192,194,196,185,190,189,202,191,195,183,167,185,165,179,176,190,186,197,173,205,209,387,406,604,576,529,529,1960,1639,29964,811,29971,29972,29964,4425,29971,29971,29968,29970,29969,29973,29978,29979,29985,29982,29987,29988]} 1. c4 {[%emt 0:00:03]} e6 {[%emt 0:00:04]} 2. g3 {[%emt 0:00:02]} Nf6 {[%emt 0:00:14]} 3. Bg2 {[%emt 0:00:01]} d5 {[%emt 0:00:04]} 4. Nf3 {[%emt 0:00:03]} Be7 {[%emt 0:00:10]} 5. O-O {[%emt 0:00:08]} O-O {[%emt 0:00:03]} 6. b3 {[%emt 0:00:02]} a5 {[%emt 0:00:16]} 7. Nc3 {[%emt 0:00:06]} c6 {[%emt 0:00:19]} 8. d4 {[%emt 0:00:39]} Nbd7 {[%emt 0:00:10]} 9. Qd3 {[%emt 0:00:16]} b5 {[%emt 0:02:04]} 10. cxb5 {[%emt 0:01:40] Weiß steht etwas besser.} cxb5 {[%emt 0:00:02]} 11. Nxb5 {[%emt 0:00:03]} Ba6 {[%emt 0:00:29]} 12. a4 {[%emt 0:00:02][%cal Ba2a4,Ba4b5][%mdl 32]} Qb6 {[%emt 0:00:19]} 13. Bf4 {[%emt 0:00:47]} Nh5 {[%emt 0:01:40]} 14. Bd2 {[%emt 0:03:41]} Rfb8 {[%emt 0:01:10][%cal Ra6b5]} 15. Rfc1 {[%emt 0:00:26] Schwarz muss nun Ne5 beachten. Weiß steht aktiver. Weiß behält die Zügel nun fest in der Hand.} Bxb5 {[%emt 0:00:41]} (15... Nhf6 $16) 16. axb5 $18 {[%emt 0:00:03]} (16. Qxb5 $6 Qxb5 17. axb5 Rxb5 $14) 16... Bf8 {[%emt 0:02:49]} 17. Ne5 $1 {[%emt 0:04:45]} Nxe5 {[%emt 0:00:36]} 18. dxe5 {[%emt 0:00:03] Droht stark e4.} g6 {[%emt 0:00:10] [#]} 19. e4 $1 {[%emt 0:00:17]} Qxb5 {[%emt 0:00:53]} 20. Qxb5 {[%emt 0:00:02]} Rxb5 {[%emt 0:00:01] [#]} 21. exd5 $1 {[%emt 0:00:01]} exd5 {[%emt 0:00:02]} 22. Rc7 {[%emt 0:00:02]} Re8 {[%emt 0:04:10]} 23. Rxa5 {[%emt 0:00:20]} ({Finger weg von} 23. Bxa5 Ra8 $16) 23... Rxa5 {[%emt 0:00:02]} 24. Bxa5 {[%emt 0:00:02]} Rxe5 {[%emt 0:00:02]} 25. Rc8 {[%emt 0:01:04] Bb4 ist eine echte Drohung.} Ng7 {[%emt 0:00:05]} 26. Bc3 {[%emt 0:00:29]} d4 {[%emt 0:00:31]} 27. Bxd4 {[%emt 0:00:03]} Re1+ {[%emt 0:00:01]} 28. Bf1 {[%emt 0:00:02] Das Läuferpaar ist gut.} Ne6 {[%emt 0:00:01]} 29. Be3 {[%emt 0:00:30]} Rb1 {[%emt 0:00:04]} 30. Kg2 {[%emt 0:00:06]} Rxb3 $2 {[%emt 0:00:02]} (30... Kg7 {war angesagt.} 31. Bc4 Ba3) 31. Bc4 {[%emt 0:00:01]} Rb7 {[%emt 0:00:16]} (31... Rxe3 $142 32. fxe3 Ng5) 32. Bxe6 {[%emt 0:00:03]} fxe6 {[%emt 0:00:01][%mdl 4096] Endspiel. KRB-KRB} 33. Bh6 {[%emt 0:00:01]} Rf7 {[%emt 0:00:01]} 34. f4 {[%emt 0:00:41]} Rf5 {[%emt 0:00:02]} 35. Re8 {[%emt 0:00:12]} (35. g4 $142 Rf7 36. Kh3 Rg7 37. Kh4 (37. Bxg7 Kxg7 38. Rc7+ Kg8 $18) 37... Kf7 38. Rc7+ Kg8 39. Bxg7 Bxg7 40. Kg5) 35... Rf6 {[%emt 0:00:14]} 36. g4 {[%emt 0:00:25]} Rf7 {[%emt 0:00:05]} 37. h3 {[%emt 0:00:06]} (37. Kf3 $142 e5 38. Rxf8+ Rxf8 39. Bxf8 exf4 40. Bh6 Kf7 41. Kxf4 (41. Bxf4 Kf6 $18) 41... Kf6 42. Bg5+ Ke6 43. h4) 37... Rf6 {[%emt 0:00:04]} 38. Kf3 {[%emt 0:00:06] Weiß setzt Matt.} e5 {[%emt 0:00:08]} 39. Rxf8+ {[%emt 0:00:10]} Rxf8 {[%emt 0:00:02]} 40. Bxf8 {[%emt 0:00:02]} Kxf8 {[%emt 0:00:01]} 41. fxe5 {[%emt 0:00:02]} Kf7 {[%emt 0:00:05]} 42. Ke4 {[%emt 0:00:06]} Ke6 {[%emt 0:00:06]} 43. g5 {[%emt 0:00:10] Gewichteter Fehlerwert: Weiß=0.06 (makellos) /Schwarz=0.63.  Fehler:       	---       	Schwarz=3     Ungenau:       	---       	Schwarz=3     OK:         	Weiß=12    	Schwarz=9     Bester:       	Weiß=1     	---        Stark:        	Weiß=1     	---} 1-0

[Event "Grand Prix Romania 1st Stage 2024"]
[Site "Bucuresti"]
[Date "2024.03.24"]
[Round "9.8"]
[White "Bernadskiy, Vitaliy"]
[Black "Rozen, Eytan"]
[Result "1-0"]
[ECO "D11"]
[WhiteElo "2573"]
[BlackElo "2487"]
[Annotator "TA"]
[PlyCount "101"]
[EventDate "2024.03.20"]
[EventType "swiss"]
[EventCountry "ROU"]
[SourceTitle "playchess.com"]
[Source "ChessBase"]
[SourceQuality "1"]
[TimeControl "900+5"]

{[%evp 26,100,201,215,227,222,216,220,232,239,321,54,27,39,28,0,0,0,0,0,0,0,0,0,0,0,26,26,18,17,16,14,20,15,18,8,31,31,61,1,47,52,86,85,125,133,262,243,312,307,466,176,466,415,426,412,373,194,194,175,181,183,343,202,385,196,313,316,352,337,456,430,450,452,361,307,29999]} 1. c4 {[%emt 0:00:03]} c6 {[%emt 0:00:06]} 2. d4 {[%emt 0:00:12]} d5 {[%emt 0:00:03]} 3. Nf3 {[%emt 0:00:14]} Nf6 {[%emt 0:00:01]} 4. Nbd2 {[%emt 0:00:07]} Bf5 {[%emt 0:00:07]} 5. Nh4 {[%emt 0:00:27]} Be4 {[%emt 0:00:17]} 6. Qb3 {[%emt 0:00:07] D11: Slav Defence: 3 Nf3 sidelines and 3...Nf6 4 e3 Bg4.} dxc4 {[%emt 0:00:15]} 7. Qxc4 $146 {[%emt 0:01:03]} ({Predecessor:} 7. Qxb7 Nbd7 8. f3 Bd5 9. e4 e6 10. g3 Rb8 11. Qa6 Bb4 12. a3 Bxd2+ 13. Bxd2 Rxb2 14. exd5 cxd5 {0-1 Vorobiov,E (2537)-Ozsakallioglu,O (2270) Ayvalik Kumru 2022 (5)}) 7... Nbd7 {[%emt 0:01:01]} 8. Nxe4 {[%emt 0:00:38]} Nxe4 {[%emt 0:00:02]} 9. Nf3 {[%emt 0:00:20]} e6 {[%emt 0:01:21]} 10. a3 {[%emt 0:00:11]} c5 {[%emt 0:00:34]} 11. Qc2 {[%emt 0:02:23]} Ndf6 {[%emt 0:01:38]} 12. Qa4+ {[%emt 0:00:05]} Qd7 {[%emt 0:00:15]} 13. Qxd7+ {[%emt 0:00:02]} Kxd7 {[%emt 0:00:23]} 14. Ne5+ {[%emt 0:00:10]} Ke8 {[%emt 0:00:01]} 15. f3 {[%emt 0:00:14]} Nd6 {[%emt 0:00:04]} 16. dxc5 {[%emt 0:00:02]} Nf5 {[%emt 0:00:05]} 17. b4 {[%emt 0:00:31]} a5 {[%emt 0:00:11]} 18. Bb2 $2 {[%emt 0:00:42]} ({Better is} 18. e4 $18 Nd4 19. Bb2 Nc2+ 20. Kf2 axb4 (20... Nxa1 $2 21. Bb5+ Ke7 22. c6 $18) 21. Bb5+ Ke7 22. c6 bxc6 (22... Nxa1 $2 23. cxb7 Rb8 24. Rd1 $18) 23. Nxc6+ Kd6 24. Rac1) 18... Ne3 $1 $14 {[%emt 0:00:31]} 19. Kf2 {[%emt 0:00:12]} Nfd5 {[%emt 0:00:02]} 20. c6 {[%emt 0:02:24]} bxc6 {[%emt 0:01:03]} 21. Nxc6 {[%emt 0:00:02]} axb4 {[%emt 0:00:46]} 22. axb4 {[%emt 0:00:02]} Rxa1 {[%emt 0:00:20]} 23. Bxa1 {[%emt 0:00:01]} Nd1+ {[%emt 0:02:31]} 24. Ke1 {[%emt 0:00:03]} N1e3 {[%emt 0:00:02]} 25. Kd2 {[%emt 0:00:49]} Nxb4 {[%emt 0:00:27]} 26. Kxe3 {[%emt 0:02:11]} Nxc6 {[%emt 0:00:01]} 27. Kf2 {[%emt 0:01:07]} f6 {[%emt 0:00:16]} 28. e3 {[%emt 0:00:04]} Kf7 {[%emt 0:00:30]} 29. Bb5 {[%emt 0:00:02]} Nb4 {[%emt 0:00:14]} 30. Rd1 {[%emt 0:00:49]} Bc5 {[%emt 0:00:40]} 31. Rd7+ {[%emt 0:00:48]} Kg6 {[%emt 0:00:01]} 32. Bc3 {[%emt 0:00:23]} (32. Bc4 $14) 32... Ra8 {[%emt 0:01:09]} (32... Nd5 $1 $11 33. Bd3+ f5 34. Bxg7 (34. Rxg7+ Kh6 $11) 34... Bxe3+ 35. Kf1 Ra8) 33. Bc4 $14 {[%emt 0:00:07]} Ra3 {[%emt 0:00:45]} 34. Bd2 {[%emt 0:00:21]} e5 {[%emt 0:00:58]} 35. Ke2 {[%emt 0:00:09]} h6 {[%emt 0:00:17]} (35... h5 $16 36. Bf7+ (36. Rc7 Bd6 $16) 36... Kh6) 36. g4 $18 {[%emt 0:00:15]} Ra1 {[%emt 0:00:19]} 37. h4 {[%emt 0:00:11]} Rh1 {[%emt 0:00:21]} (37... h5 {was called for.} 38. Rc7 Bd6) 38. Bf7+ $18 {[%emt 0:00:16]} Kh7 {[%emt 0:00:02]} 39. h5 {[%emt 0:00:02]} Rh2+ {[%emt 0:00:05]} 40. Kf1 {[%emt 0:00:03]} Nc6 {[%emt 0:00:18]} 41. Bd5 {[%emt 0:00:19]} (41. Bg6+ $142 Kg8 42. Bc3 Rh1+ (42... Bxe3 $2 {loses.} 43. Rc7 $18) 43. Ke2) 41... Ne7 $18 {[%emt 0:00:12]} 42. Be4+ {[%emt 0:00:02]} Kg8 {[%emt 0:00:01] [#]} 43. Bg6 $1 {[%emt 0:00:14]} Nc6 $2 {[%emt 0:00:07]} (43... Nxg6 44. hxg6 Kf8 45. Rf7+ Ke8) 44. Ke1 $18 {[%emt 0:00:08]} Bf8 $2 {[%emt 0:00:13]} (44... Rh1+ {is a better defense.} 45. Ke2 Ba3) 45. Rc7 {[%emt 0:00:07]} (45. Bf7+ $142 Kh8 46. Bg6) 45... Ne7 {[%emt 0:00:05]} (45... Rh1+ $142 46. Ke2 Rh2+ 47. Kd1 Ne7) 46. Be4 $18 {[%emt 0:00:01]} Rh1+ {[%emt 0:00:02]} 47. Ke2 {[%emt 0:00:01]} Ra1 {[%emt 0:00:07]} 48. Bb4 {[%emt 0:00:02]} Kf7 {[%emt 0:00:06]} 49. Bg6+ {[%emt 0:00:24]} Ke6 50. Bc2 {[%emt 0:00:00]} ({Resist} 50. Bf5+ Kf7 51. Bg6+ Ke6 $18) 50... Nd5 $2 {[%emt 0:00:12]} (50... Ra2 $18 51. Kd1 Rb2) 51. Bf5# 1-0

[Event "Grand Prix Romania 1st Stage 2024"]
[Site "Bucuresti"]
[Date "2024.03.24"]
[Round "9.9"]
[White "Jianu, Vlad-Cristian"]
[Black "Gavrilescu, David"]
[Result "1/2-1/2"]
[ECO "E06"]
[WhiteElo "2491"]
[BlackElo "2524"]
[Annotator "TA"]
[PlyCount "132"]
[EventDate "2024.03.20"]
[EventType "swiss"]
[EventCountry "ROU"]
[SourceTitle "playchess.com"]
[Source "ChessBase"]
[SourceQuality "1"]
[TimeControl "900+5"]

{[%evp 11,132,16,38,31,53,27,36,58,39,6,6,22,12,19,18,4,14,10,40,37,68,53,85,14,13,8,14,14,54,48,62,68,76,64,85,80,76,77,90,88,125,86,112,89,94,0,32,31,25,8,229,227,249,244,250,0,14,14,14,14,20,18,20,8,11,8,29,32,73,29,161,154,176,154,154,0,169,167,166,127,167,160,29963,29964,5077,767,750,729,722,624,977,977,962,273,280,247,4134,204,29982,29983,29983,29984,29984,29982,29982,29983,29983,29984,29987,0,0,0,0,0,0,0,0,0,0,0,0,0,0]} 1. d4 {[%emt 0:00:03]} d5 {[%emt 0:00:03]} 2. c4 {[%emt 0:00:02]} e6 {[%emt 0:00:01]} 3. Nf3 {[%emt 0:00:01]} Nf6 {[%emt 0:00:02]} 4. g3 {[%emt 0:00:01]} Be7 {[%emt 0:00:01]} 5. Bg2 {[%emt 0:00:01]} O-O {[%emt 0:00:03]} 6. O-O {[%emt 0:00:02]} a5 {[%emt 0:00:01]} 7. Qc2 {[%emt 0:00:26]} Nc6 {[%emt 0:00:03]} 8. a3 $1 {[%emt 0:00:33]} dxc4 {[%emt 0:00:04]} 9. Qxc4 {[%emt 0:00:25] Weiß steht etwas besser.} a4 {[%emt 0:00:02]} 10. Bf4 {[%emt 0:00:34]} Nd5 {[%emt 0:01:55]} 11. Nc3 {[%emt 0:00:08]} Nxf4 {[%emt 0:02:09]} 12. gxf4 {[%emt 0:00:02]} Bd7 {[%emt 0:00:02]} 13. Rad1 {[%emt 0:01:11][%cal Oc4d3]} Bd6 {[%emt 0:01:59]} 14. e3 {[%emt 0:00:30][%cal Oc3e4]} Ne7 {[%emt 0:00:39]} 15. Ne5 {[%emt 0:00:59]} Be8 {[%emt 0:00:49]} 16. Bxb7 {[%emt 0:02:34]} Rb8 {[%emt 0:00:02]} 17. Bg2 {[%emt 0:01:40] Weiß steht deutlich aktiver.} ({Günstiger ist} 17. Be4 $16) 17... Rxb2 $11 {[%emt 0:00:05]} 18. Rb1 {[%emt 0:00:09]} Rxb1 {[%emt 0:00:52]} 19. Rxb1 {[%emt 0:00:02]} Bxa3 {[%emt 0:00:57]} 20. Nxa4 {[%emt 0:00:03]} Nf5 {[%emt 0:00:47]} 21. Nc5 {[%emt 0:00:22]} Nh4 {[%emt 0:00:31]} 22. Be4 {[%emt 0:00:46]} Bxc5 {[%emt 0:00:25]} 23. Qxc5 {[%emt 0:00:17]} f6 {[%emt 0:00:15]} 24. Nc6 {[%emt 0:01:29]} Bxc6 {[%emt 0:00:24]} 25. Qxc6 {[%emt 0:00:03]} Qe7 {[%emt 0:00:32]} 26. Rc1 {[%emt 0:00:46][%cal Oc6b7]} f5 {[%emt 0:01:22]} 27. Bd3 {[%emt 0:00:22][%cal Oc6b7]} (27. Qxc7 $2 Qxc7 28. Rxc7 fxe4 $19) 27... h6 {[%emt 0:00:56]} 28. Qxc7 {[%emt 0:01:09]} (28. Kf1 $16) 28... Nf3+ $14 {[%emt 0:00:06]} 29. Kf1 $1 {[%emt 0:00:23]} (29. Kg2 Ne1+ 30. Kf1 Qxc7 (30... Nxd3 $2 31. Qxe7 Nxc1 32. Qxe6+ Kh7 33. Qc4 $18) 31. Rxc7 Nxd3 $17) 29... Qh4 {[%emt 0:00:19]} 30. Qc6 {[%emt 0:00:45][%csl LRe6,LRf3]} Qg4 $2 {[%emt 0:00:21] [#]} (30... Qh5 $1 $11) 31. h3 $1 $18 {[%emt 0:00:11]} (31. Qxe6+ Kh8 32. Rc8 Nxh2+ 33. Ke1 Nf3+ 34. Kf1 Nh2+ 35. Ke1 Nf3+ 36. Kf1 Nh2+ $11) 31... Qh5 {[%emt 0:01:34]} 32. Qxe6+ {[%emt 0:00:52]} Kh7 {[%emt 0:00:01] [#]} 33. Rc5 $2 {[%emt 0:00:27]} (33. Kg2 Rf6 34. Qd5 Rg6+ 35. Kf1 Rg1+ 36. Ke2 Ne5+ (36... Rxc1 $2 37. Bxf5+ g6 38. Qd7+ Kh8 39. Bg4 $18) (36... Nxd4+ $2 37. Kd2 $18) 37. f3 Rg2+ (37... Rxc1 $2 38. Qxe5 Qf7 39. Qxf5+ Kg8 40. Kd2 $18) 38. Kd1 Qxh3 $15 (38... Nxd3 39. Rc8 $11)) (33. Qd5 $1 $18) 33... Nxd4 {[%emt 0:00:12]} 34. exd4 {[%emt 0:00:19][%cal Rd3f5]} Qd1+ {[%emt 0:00:01]} 35. Kg2 {[%emt 0:00:01]} Qxd3 $11 {[%emt 0:00:02][%mdl 4096] Endspiel. KQR-KQR} 36. Qe3 $36 {[%emt 0:00:03][%mdl 2048] Weiss hat Initiative.} Qb1 {[%emt 0:00:09]} 37. Rc1 {[%emt 0:00:11]} Qb7+ {[%emt 0:00:03]} 38. Qf3 {[%emt 0:00:02]} Qb6 {[%emt 0:00:15]} (38... Qxf3+ {vereinfacht} 39. Kxf3 Kg6 40. h4 Rd8) 39. d5 {[%emt 0:00:03]} Rf6 {[%emt 0:00:09]} 40. Rc6 {[%emt 0:00:09]} Rg6+ {[%emt 0:00:01]} (40... Rxc6 $1 $11 {und Schwarz steht sicher.} 41. dxc6 Qc5) 41. Rxg6 $18 {[%emt 0:00:06]} Qxg6+ {[%emt 0:00:01] KQ-KQ} 42. Kh2 {[%emt 0:00:05]} Qd6 {[%emt 0:00:02]} 43. Kg2 {[%emt 0:00:05]} Qg6+ {[%emt 0:00:01]} 44. Kf1 {[%emt 0:00:01]} Qd6 {[%emt 0:00:05]} 45. Ke2 {[%emt 0:00:16]} Qb4 {[%emt 0:00:01]} 46. Qd3 {[%emt 0:00:06]} Qxf4 {[%emt 0:00:15]} (46... Kg6 $16 47. d6 Qb2+ 48. Kf3 Qb7+ 49. Kg3 Qd7) 47. d6 {[%emt 0:00:01]} Qe5+ {[%emt 0:00:02]} 48. Kf1 {[%emt 0:00:03]} (48. Kf3 $142 Qb2 49. Qxf5+ Kh8 50. d7 Qa3+ 51. Kg2 Qa8+ 52. Qf3) 48... Qa1+ {[%emt 0:00:05]} 49. Kg2 {[%emt 0:00:01]} Qa8+ {[%emt 0:00:02]} 50. f3 {[%emt 0:00:04]} Kg6 {[%emt 0:00:07]} 51. d7 {[%emt 0:00:05]} Qd8 {[%emt 0:00:01]} 52. Qd6+ $2 {[%emt 0:00:02]} (52. h4 Kf7 53. Qxf5+ Ke7 54. Qe5+ Kxd7 55. Qxg7+ Qe7 56. Qxh6) 52... Kf7 {[%emt 0:00:01]} 53. h4 {[%emt 0:00:08][%cal Bh3h4,Bh4h5][%mdl 32]} g6 $2 {[%emt 0:00:08]} (53... f4 54. h5 (54. Qxf4+ Ke6 $14) 54... Qg5+ 55. Kf2 Qh4+ 56. Kf1 Qh1+ 57. Ke2 Qg2+ 58. Ke1 Qg3+ 59. Kd2 Qf2+ 60. Kc3 Qxf3+ 61. Kc4 Qf1+ (61... Qe2+ $2 62. Kc5 $18) 62. Kc5 Qf2+ 63. Kc6 Qf3+ 64. Kc7 Qxh5 65. Qxf4+ (65. d8=R Qa5+ 66. Kc6 Qa6+ 67. Kd5 Qd3+ 68. Ke5 Qe3+ 69. Kf5 Qh3+ 70. Kxf4 Qf1+ 71. Ke5 Qe2+ 72. Kd4 Qd1+ 73. Kc5 Qc2+ 74. Kb5 Qb2+ 75. Kc6 Qc2+ 76. Qc5 Qa4+ 77. Kb6 Qe4 $18) 65... Ke6 66. Qc4+ (66. d8=R Qa5+ 67. Kc8 Qa6+ 68. Kb8 Qb6+ 69. Kc8 Qa6+ 70. Kb8 Qb5+ 71. Kc8 Qa6+ $11) (66. Qd6+ Kf7 67. d8=Q Qa5+ 68. Kc6 Qa4+ 69. Kb7 Qe4+ 70. Kb8 Qb1+ 71. Kc8 Qc2+ 72. Q8c7+ Qxc7+ 73. Kxc7 Kg8) 66... Qd5) 54. Kg3 $2 {[%emt 0:00:06]} (54. f4 {Droht stark Kf3.} g5 55. fxg5 (55. Qxh6 Qa8+ 56. Kf2 Qa2+ 57. Kg3 Qa3+ 58. Kg2 Qb2+ 59. Kf1 Qb5+ 60. Kf2 Qb2+ 61. Ke3 Qc3+ 62. Kf2 Qd2+ 63. Kg1 Qe1+ 64. Kg2 Qe2+ 65. Kg1 Qe1+ 66. Kg2 Qe2+ 67. Kg3 Qe1+ 68. Kg2 $11) 55... hxg5 56. Qd5+ Kf6 57. h5) 54... g5 $2 {[%emt 0:00:03]} (54... Kg7 $18 55. f4 Kf7) 55. h5 {[%emt 0:00:02]} (55. Qxh6 gxh4+ 56. Kh3 (56. Qxh4 Qc7+ 57. Kf2 Qa7+ 58. Kg2 Qxd7 $11) 56... Qxd7 $11) 55... g4 {[%emt 0:00:19]} 56. fxg4 {[%emt 0:00:18]} fxg4 {[%emt 0:00:01]} 57. Qg6+ {[%emt 0:00:06]} Ke7 {[%emt 0:00:01]} 58. Qg7+ {[%emt 0:00:03]} (58. Kxg4 Qxd7+ 59. Kf3 Qd1+ 60. Ke3 Qc1+ 61. Kd3 Qd1+ 62. Kc3 Qc1+ 63. Kd4 Qb2+ 64. Ke3 Qe5+ 65. Qe4 Qe6 $11) 58... Kd6 {[%emt 0:00:06]} 59. Qxh6+ {[%emt 0:00:02]} (59. Kxg4 Qxd7+ 60. Qxd7+ Kxd7 $11) 59... Kxd7 {[%emt 0:00:01]} 60. Qg7+ $2 {[%emt 0:00:01]} ({Lieber nicht} 60. Kxg4 Qg8+ 61. Qg5 Qxg5+ 62. Kxg5 Ke8 $11) (60. Qd2+ {setzt Matt} Ke8 61. Qxd8+ Kxd8 62. h6 (62. Kxg4 Ke8 $11) 62... Ke7 63. h7 (63. Kxg4 Kf8 $11) 63... Ke8 64. h8=Q+ (64. h8=R+ Ke7 65. Rh6 Kf7 66. Kxg4 Ke7 67. Kf5 Kd7 68. Ke5 Kc7) 64... Kd7 65. Qc3 (65. Kxg4 Kd6 66. Qc3 Ke6 67. Qd4 Kf7 68. Qe4 Kf8 69. Kf5 Kf7 70. Qb7+ Ke8 71. Ke6 Kf8 72. Qf7#)) 60... Ke6 $11 {[%emt 0:00:05] Die Stellung ist ausgeglichen.} 61. Qg6+ {[%emt 0:00:02]} Ke5 {[%emt 0:00:06]} 62. Qg7+ {[%emt 0:00:02]} Ke6 {[%emt 0:00:04]} 63. Qxg4+ {[%emt 0:00:01]} Kf7 {[%emt 0:00:04]} 64. Qg6+ {[%emt 0:00:01]} Kf8 {[%emt 0:00:01]} 65. h6 {[%emt 0:00:02] Droht Matt per Qg7+.} Qc7+ {[%emt 0:00:02]} 66. Kg4 {[%emt 0:00:01]} Qc4+ {[%emt 0:00:02] Weiß hat ein paar 100-prozentige Torchancen vergeben.   Gewichteter Fehlerwert: Weiß=0.42/Schwarz=0.35.  Verlustzug:     	---       	Schwarz=2     Gewinn verpasst:   	Weiß=1     	---        Fehler:       	Weiß=3     	Schwarz=3     Ungenau:       	Weiß=3     	Schwarz=6     OK:         	Weiß=8     	Schwarz=22    Bester:       	Weiß=5     	Schwarz=5     Stark:        	Weiß=3     	---} 1/2-1/2